bitfinex/quotes_BTCUSD_20250313
["timestamp","ask_amount","ask_price","bid_price","bid_amount"]
[1741845912571,0.0016551,83268.0,83267.0,0.25435528]
[1741845914693,0.02397121,83268.0,83267.0,0.25435528]
[1741845915455,0.02397121,83268.0,83267.0,0.00215528]
[1741845915873,0.0016551,83268.0,83267.0,0.00215528]
[1741845916461,0.00147774,83268.0,83267.0,0.00215528]
[1741845917206,0.00147774,83268.0,83267.0,0.01416428]
[1741845918300,0.00147774,83268.0,83267.0,0.00215528]
[1741845921407,0.01348674,83268.0,83267.0,0.00215528]
[1741845921585,0.08998674,83268.0,83267.0,0.00215528]
[1741845923028,0.10215922,83268.0,83267.0,0.00215528]
[1741845924658,0.13570059,83268.0,83267.0,0.00215528]
[1741845926046,0.15452525,83268.0,83267.0,0.00215528]
[1741845926434,0.15452525,83268.0,83267.0,0.00115528]
[1741845926842,0.15452525,83268.0,83267.0,0.00015528]
[1741845927066,0.15452525,83268.0,83267.0,0.00215528]
[1741845927470,0.15452525,83268.0,83267.0,0.00015528]
[1741845927886,0.15452525,83268.0,83267.0,0.00115528]
[1741845928093,0.17952525,83268.0,83267.0,0.00115528]
[1741845928461,0.21527485,83268.0,83267.0,0.00115528]
[1741845929126,0.19027485,83268.0,83267.0,0.00115528]
[1741845929330,0.2535493,83256.0,83255.0,0.005]
[1741845929532,0.3291493,83256.0,83255.0,0.005]
[1741845929735,0.2535493,83256.0,83255.0,0.005]
[1741845930204,0.33048754,83256.0,83255.0,0.005]
[1741845930930,0.34166694,83256.0,83255.0,0.005]
[1741845931149,0.34266694,83256.0,83255.0,0.005]
[1741845931777,0.34266694,83256.0,83255.0,0.006]
[1741845934140,0.46926694,83256.0,83255.0,0.006]
[1741845935304,0.49426694,83256.0,83255.0,0.006]
[1741845935504,0.47544027,83256.0,83255.0,0.006]
[1741845936236,0.44944027,83256.0,83255.0,0.006]
[1741845936444,0.45344027,83256.0,83255.0,0.005]
[1741845937210,0.48044027,83256.0,83255.0,0.005]
[1741845937407,0.45544027,83256.0,83255.0,0.005]
[1741845938193,0.4742689,83256.0,83255.0,0.005]
[1741845941216,0.4742689,83256.0,83255.0,0.0051694]
[1741845943193,0.4992689,83256.0,83255.0,4e-07]
[1741845943373,0.0633273,83255.0,83254.0,8e-07]
[1741845943575,0.4277763,83247.0,83246.0,8e-07]
[1741845944474,0.3777763,83247.0,83246.0,8e-07]
[1741845944675,0.43588787,83247.0,83246.0,8e-07]
[1741845944904,0.43588787,83247.0,83246.0,0.00041473]
[1741845946151,0.44706727,83247.0,83246.0,0.00041473]
[1741845946649,0.46589798,83247.0,83246.0,0.00041473]
[1741845947036,0.47289798,83247.0,83246.0,0.00041393]
[1741845947238,0.50389798,83247.0,83246.0,0.00041393]
[1741845947444,0.57561458,83247.0,83246.0,0.00041393]
[1741845947664,0.52589798,83247.0,83246.0,0.00041393]
[1741845948272,0.52589798,83247.0,83246.0,9.3e-07]
[1741845948712,0.52589798,83247.0,83240.0,0.005]
[1741845948713,0.2535953,83241.0,83240.0,0.005]
[1741845949410,0.2647747,83241.0,83240.0,0.005]
[1741845950176,0.4166747,83241.0,83240.0,1e-06]
[1741845950376,0.49978627,83241.0,83240.0,1e-06]
[1741845950602,0.50778627,83241.0,83240.0,1e-06]
[1741845950830,0.2536223,83232.0,83231.0,0.0008]
[1741845951415,0.31173387,83232.0,83231.0,0.0008]
[1741845951726,0.36755014,83232.0,83231.0,0.0008]
[1741845951927,0.42075014,83232.0,83231.0,0.0008]
[1741845952346,0.43192954,83232.0,83231.0,0.0008]
[1741845953147,0.45692954,83232.0,83231.0,1e-06]
[1741845953370,0.59548954,83232.0,83231.0,1e-06]
[1741845953563,0.44092954,83232.0,83231.0,1e-06]
[1741845954168,0.43592954,83232.0,83231.0,1e-06]
[1741845954390,0.43792954,83232.0,83231.0,1e-06]
[1741845954589,0.57648954,83232.0,83231.0,1e-06]
[1741845954814,0.44192954,83232.0,83231.0,1e-06]
[1741845955039,0.44192954,83232.0,83231.0,0.0001705]
[1741845955216,0.40617994,83232.0,83231.0,0.0001705]
[1741845956042,0.54473994,83232.0,83231.0,0.0001705]
[1741845956224,0.40617994,83232.0,83231.0,0.0001705]
[1741845956556,0.54473994,83232.0,83231.0,0.0001705]
[1741845956704,0.40617994,83232.0,83231.0,0.0001705]
[1741845957162,0.54473994,83232.0,83231.0,0.0001705]
[1741845957348,0.40617994,83232.0,83231.0,0.0001705]
[1741845957680,0.58037775,83232.0,83231.0,0.0001705]
[1741845958040,0.44181775,83232.0,83231.0,0.0001705]
[1741845958218,0.58037775,83232.0,83231.0,0.0001705]
[1741845958423,0.58031532,83232.0,83231.0,0.0001705]
[1741845958621,0.49181775,83232.0,83231.0,0.0001705]
[1741845958845,0.63037775,83232.0,83231.0,0.0001705]
[1741845959047,0.67817775,83232.0,83231.0,5e-07]
[1741845959246,0.53961775,83232.0,83231.0,5e-07]
[1741845959444,0.67817775,83232.0,83231.0,5e-07]
[1741845959670,0.53961775,83232.0,83231.0,5e-07]
[1741845960656,0.65317775,83232.0,83231.0,5e-07]
[1741845960856,0.51461775,83232.0,83231.0,5e-07]
[1741845961034,0.53961775,83232.0,83231.0,5e-07]
[1741845961408,0.64253994,83232.0,83231.0,5e-07]
[1741845961621,0.50397994,83232.0,83231.0,5e-07]
[1741845961832,0.2536403,83226.0,83225.0,0.005]
[1741845962533,0.27600227,83226.0,83225.0,0.005]
[1741845963136,0.28000227,83226.0,83225.0,0.005]
[1741845963336,0.28200227,83226.0,83225.0,0.005]
[1741845963945,0.29318167,83226.0,83225.0,0.005]
[1741845965566,0.28200227,83226.0,83225.0,0.005]
[1741845967838,0.29315622,83226.0,83225.0,0.0051695]
[1741845976463,0.04083222,83226.0,83225.0,0.0051695]
[1741845976661,0.05284722,83226.0,83225.0,0.0051695]
[1741845977474,0.04884722,83226.0,83225.0,0.0051695]
[1741845977810,0.04684722,83226.0,83225.0,0.0051695]
[1741845978016,0.04784722,83226.0,83225.0,0.0051695]
[1741845979720,0.06668136,83226.0,83225.0,0.0051695]
[1741845980063,0.06568136,83226.0,83225.0,0.0051695]
[1741845980396,0.06768136,83226.0,83225.0,0.0051695]
[1741845980939,0.05752741,83226.0,83225.0,0.0051695]
[1741845981967,0.2536643,83218.0,83217.0,0.0001694]
[1741845983168,0.25408017,83218.0,83217.0,0.0001694]
[1741845983597,0.27644214,83218.0,83217.0,0.0001694]
[1741845984360,0.28762758,83218.0,83217.0,0.0001694]
[1741845986068,0.28862758,83218.0,83217.0,0.0001694]
[1741845986348,0.30746406,83218.0,83217.0,0.0001694]
[1741845988559,0.3432495,83218.0,83217.0,0.0001694]
[1741845988903,0.4163495,83218.0,83217.0,4e-07]
[1741845989108,0.5576695,83218.0,83217.0,4e-07]
[1741845989310,0.4163495,83218.0,83217.0,4e-07]
[1741845989523,0.4993495,83218.0,83217.0,4e-07]
[1741845989786,0.57822035,83218.0,83217.0,4e-07]
[1741845989916,0.57822035,83218.0,83200.0,0.00316073]
[1741845989917,0.2537163,83201.0,83200.0,0.00316073]
[1741845990435,0.01202,83194.0,83187.0,0.012021]
[1741845990635,0.252424,83194.0,83187.0,0.012021]
[1741845990836,0.01202,83190.0,83184.0,0.057621]
[1741845991038,0.01202,83191.0,83186.0,0.012021]
[1741845991268,0.25243,83191.0,83184.0,0.06155616]
[1741845991596,0.01202,83190.0,83184.0,0.06155616]
[1741845991748,0.01202,83194.0,83185.0,0.012021]
[1741845991954,0.01884047,83190.0,83187.0,0.012021]
[1741845992342,0.01884047,83190.0,83186.0,0.012021]
[1741845992709,0.03572641,83188.0,83185.0,0.012021]
[1741845992914,0.03572641,83188.0,83184.0,0.057621]
[1741845993085,0.03572641,83188.0,83185.0,1.5]
[1741845993602,0.0133373,83185.0,83184.0,0.0456]
[1741845994031,0.0013163,83185.0,83184.0,0.057621]
[1741845994240,0.0013163,83185.0,83184.0,0.06155616]
[1741845995388,0.0013163,83185.0,83184.0,0.04953516]
[1741845995587,0.08852858,83185.0,83184.0,0.04953516]
[1741845996009,0.08852858,83185.0,83184.0,0.00393516]
[1741845996010,0.10054958,83185.0,83184.0,0.00393516]
[1741845996411,0.012021,83184.0,83183.0,0.0001694]
[1741845996614,0.0013163,83184.0,83183.0,0.0121904]
[1741845996812,0.0013163,83184.0,83183.0,0.01612961]
[1741845997052,0.03038117,83184.0,83183.0,0.01612961]
[1741845997432,0.03038117,83184.0,83183.0,0.00410861]
[1741845997929,0.03038117,83184.0,83183.0,0.01612961]
[1741845998470,0.08852858,83184.0,83183.0,0.01612961]
[1741845998696,0.08852858,83184.0,83183.0,0.0121904]
[1741845998898,0.08852858,83184.0,83183.0,0.0883904]
[1741845999053,0.08952858,83184.0,83183.0,0.0883904]
[1741845999257,0.08821228,83184.0,83183.0,0.1333904]
[1741845999445,0.08821228,83184.0,83183.0,0.14793125]
[1741845999849,0.05242684,83184.0,83183.0,0.14793125]
[1741846000092,0.02336197,83184.0,83183.0,0.1723045]
[1741846000632,9.7e-07,83184.0,83183.0,0.29344864]
[1741846000788,9.7e-07,83184.0,83183.0,0.29224669]
[1741846000967,9.7e-07,83184.0,83183.0,0.70284589]
[1741846001559,0.0013163,83201.0,83193.0,0.01202]
[1741846001760,0.0013163,83201.0,83193.0,0.2817018]
[1741846001989,0.0013163,83201.0,83193.0,0.53444485]
[1741846002204,0.0013163,83201.0,83193.0,0.53344485]
[1741846002800,0.0013163,83196.0,83193.0,0.53244485]
[1741846003016,0.0013163,83196.0,83193.0,0.53644485]
[1741846003243,0.0013163,83200.0,83193.0,0.53644485]
[1741846003463,0.0013163,83201.0,83193.0,0.53644485]
[1741846003617,0.01883727,83202.0,83193.0,0.53644485]
[1741846003824,0.0013163,83200.0,83193.0,2.03644485]
[1741846004858,0.0013163,83196.0,83193.0,1.89276485]
[1741846005068,0.00141587,83194.0,83193.0,2.05082922]
[1741846007906,0.00141587,83194.0,83193.0,0.55082922]
[1741846008517,0.00141587,83194.0,83193.0,2.05082922]
[1741846008755,0.00141587,83194.0,83193.0,2.04682922]
[1741846008918,0.00041587,83194.0,83193.0,2.04182922]
[1741846009120,0.00141587,83194.0,83193.0,2.04682922]
[1741846009321,0.00241587,83194.0,83193.0,2.05382922]
[1741846009590,0.00241587,83194.0,83193.0,2.17377141]
[1741846011488,0.00241587,83194.0,83193.0,0.67377141]
[1741846012635,0.00241587,83194.0,83193.0,0.55382922]
[1741846013759,0.00373217,83194.0,83193.0,0.012]
[1741846014171,0.01575217,83194.0,83193.0,0.012]
[1741846014369,0.09635217,83194.0,83193.0,0.012]
[1741846014885,0.10750738,83194.0,83193.0,0.012]
[1741846015086,0.16550616,83194.0,83193.0,0.012]
[1741846015293,0.08490616,83194.0,83193.0,0.012]
[1741846016839,0.1037464,83194.0,83193.0,0.012]
[1741846018525,0.01202,83191.0,83185.0,0.252446]
[1741846019130,0.07001878,83190.0,83185.0,0.252446]
[1741846019743,0.01115521,83189.0,83185.0,0.252446]
[1741846019962,0.01115521,83189.0,83185.0,0.257446]
[1741846020162,0.01115521,83189.0,83185.0,0.263446]
[1741846021255,0.06915399,83188.0,83185.0,0.263446]
[1741846021492,0.06915399,83188.0,83185.0,0.257446]
[1741846021682,0.06915399,83188.0,83185.0,0.263446]
[1741846022184,0.06915399,83188.0,83185.0,0.257446]
[1741846022430,0.06915399,83188.0,83185.0,0.258446]
[1741846022643,0.06915399,83187.0,83185.0,0.252446]
[1741846022819,0.06915399,83187.0,83185.0,0.258446]
[1741846023020,0.06915399,83187.0,83185.0,0.265446]
[1741846023403,0.06915399,83187.0,83185.0,0.259446]
[1741846023598,0.06915399,83187.0,83185.0,0.266446]
[1741846023990,0.01247151,83186.0,83185.0,0.266446]
[1741846024704,0.07047029,83186.0,83185.0,0.266446]
[1741846025099,0.07047029,83186.0,83185.0,0.259446]
[1741846025353,0.06915399,83186.0,83185.0,0.51822904]
[1741846025481,0.06915399,83186.0,83185.0,0.52522904]
[1741846025683,0.06915399,83186.0,83185.0,0.53222904]
[1741846025893,0.03346243,83186.0,83185.0,0.52522904]
[1741846026097,0.03446243,83186.0,83185.0,0.52522904]
[1741846026302,0.03446243,83186.0,83185.0,0.54992459]
[1741846026506,0.02330722,83186.0,83185.0,0.54992459]
[1741846026726,0.02330722,83186.0,83185.0,0.33364155]
[1741846026727,0.02462352,83186.0,83185.0,0.33364155]
[1741846026927,0.02362352,83186.0,83185.0,0.27714155]
[1741846027129,0.00041587,83194.0,83185.0,0.27714155]
[1741846027130,0.02230722,83193.0,83189.0,0.01202]
[1741846027360,0.02230722,83193.0,83192.0,0.02656085]
[1741846027868,0.02230722,83193.0,83192.0,0.10506272]
[1741846028023,0.02230722,83193.0,83192.0,0.14916085]
[1741846028570,0.01883876,83193.0,83192.0,1.64916085]
[1741846029421,0.01883876,83193.0,83192.0,1.66316085]
[1741846030249,0.01917756,83193.0,83192.0,1.66316085]
[1741846031422,0.01917756,83193.0,83192.0,1.78310304]
[1741846031633,4.3e-07,83194.0,83193.0,0.26696485]
[1741846033059,4.3e-07,83194.0,83193.0,0.27396485]
[1741846034202,4.3e-07,83194.0,83193.0,0.28096485]
[1741846035391,4.3e-07,83194.0,83193.0,1.78096485]
[1741846035730,0.00131673,83194.0,83193.0,0.266424]
[1741846035937,0.00131673,83194.0,83193.0,0.410144]
[1741846036081,0.00131673,83194.0,83193.0,1.910144]
[1741846036842,0.00131673,83194.0,83193.0,1.910024]
[1741846037574,0.00131673,83194.0,83193.0,0.014]
[1741846037772,0.00131673,83194.0,83193.0,0.02602]
[1741846038800,0.00131673,83194.0,83193.0,0.014]
[1741846039012,0.04233212,83194.0,83193.0,0.014]
[1741846039415,0.10032291,83194.0,83193.0,0.014]
[1741846039811,0.10032291,83194.0,83193.0,0.007]
[1741846040255,0.10032291,83194.0,83193.0,0.014]
[1741846040633,0.10032291,83194.0,83193.0,0.007]
[1741846041084,0.18152291,83194.0,83193.0,0.011]
[1741846041230,0.18152291,83194.0,83185.0,0.0001694]
[1741846041231,0.012021,83186.0,83185.0,0.0001694]
[1741846041433,0.2537623,83186.0,83185.0,0.0001694]
[1741846041645,0.3820623,83186.0,83185.0,0.0001694]
[1741846041823,0.0383373,83184.0,83183.0,0.0001694]
[1741846042027,0.2654973,83184.0,83183.0,0.0001694]
[1741846042482,0.2654973,83184.0,83183.0,4e-07]
[1741846043094,0.30202563,83184.0,83183.0,4e-07]
[1741846043273,0.0133393,83172.0,83166.0,0.005]
[1741846043474,0.0013163,83172.0,83166.0,0.005]
[1741846043952,0.0013163,83172.0,83170.0,0.012023]
[1741846044244,0.0013163,83174.0,83173.0,0.252485]
[1741846044664,0.0013163,83174.0,83173.0,1.752485]
[1741846045083,0.0013163,83176.0,83175.0,0.012022]
[1741846045289,0.0013163,83177.0,83176.0,0.252475]
[1741846045494,0.0013163,83177.0,83176.0,0.245475]
[1741846046116,0.01884287,83179.0,83178.0,0.012022]
[1741846046707,0.0013163,83187.0,83186.0,0.252446]
[1741846047886,0.01244559,83187.0,83186.0,0.252446]
[1741846048160,0.01112929,83187.0,83186.0,0.252446]
[1741846048420,0.01244559,83187.0,83186.0,0.252446]
[1741846048625,0.03339257,83187.0,83186.0,0.257446]
[1741846048795,0.03339257,83187.0,83186.0,0.39092904]
[1741846049547,0.02226328,83187.0,83186.0,0.39392904]
[1741846049760,0.02226328,83187.0,83186.0,0.27398685]
[1741846050168,0.0188424,83189.0,83188.0,0.01202]
[1741846050756,0.0188424,83189.0,83188.0,0.02776282]
[1741846050966,0.0188424,83189.0,83188.0,0.02656085]
[1741846051371,0.02226185,83189.0,83188.0,0.02656085]
[1741846051572,0.02226185,83189.0,83188.0,0.03056085]
[1741846052237,0.02226185,83189.0,83188.0,0.03456085]
[1741846052975,0.0013163,83196.0,83193.0,0.01202]
[1741846053190,0.0013163,83196.0,83193.0,0.16586]
[1741846053391,0.0013163,83196.0,83193.0,0.406264]
[1741846053794,0.0013163,83196.0,83193.0,1.906264]
[1741846054650,0.0013163,83196.0,83193.0,1.906064]
[1741846054651,0.02259913,83194.0,83193.0,1.906064]
[1741846055045,0.02259913,83194.0,83193.0,1.910064]
[1741846055417,0.02259913,83194.0,83193.0,1.913064]
[1741846056327,0.02259913,83194.0,83193.0,1.92460485]
[1741846056868,0.02259913,83194.0,83193.0,0.42860485]
[1741846057217,0.00033923,83194.0,83193.0,1.92860485]
[1741846057447,0.00033923,83194.0,83193.0,2.68784485]
[1741846057674,0.00033923,83194.0,83193.0,2.524664]
[1741846057878,0.00165553,83194.0,83193.0,1.178104]
[1741846059364,0.01278517,83194.0,83193.0,0.78426]
[1741846059566,0.01278517,83194.0,83193.0,0.92552]
[1741846059813,0.01278517,83194.0,83193.0,0.78426]
[1741846060121,0.07065978,83194.0,83193.0,1.024664]
[1741846060280,0.07065978,83194.0,83193.0,0.261424]
[1741846060481,0.07065978,83194.0,83193.0,0.257424]
[1741846061089,0.08715115,83194.0,83193.0,0.252424]
[1741846061475,0.08715115,83194.0,83193.0,0.405544]
[1741846061696,0.08715115,83194.0,83193.0,0.54002704]
[1741846061894,0.08715115,83194.0,83193.0,0.54202704]
[1741846062102,0.08715115,83194.0,83193.0,0.42208485]
[1741846062387,0.08715115,83194.0,83193.0,0.42508485]
[1741846062592,0.08715115,83194.0,83193.0,0.42008485]
[1741846062843,0.02927654,83194.0,83193.0,0.42408485]
[1741846063088,0.00033923,83194.0,83193.0,0.42408485]
[1741846063732,0.00033923,83194.0,83193.0,1.92408485]
[1741846063957,0.00033923,83194.0,83193.0,1.92416485]
[1741846064091,0.00033923,83194.0,83193.0,1.914624]
[1741846064491,0.00033923,83194.0,83193.0,1.914504]
[1741846065989,0.00033923,83194.0,83193.0,2.04898704]
[1741846066144,0.02260424,83194.0,83193.0,2.04898704]
[1741846066816,0.02260424,83194.0,83193.0,1.92904485]
[1741846067871,0.00033923,83194.0,83193.0,1.92904485]
[1741846070012,0.00033923,83194.0,83193.0,0.42904485]
[1741846070591,0.00033923,83194.0,83193.0,2.04898704]
[1741846072712,2.3e-07,83194.0,83193.0,2.04898704]
[1741846073985,2.3e-07,83194.0,83193.0,2.53598624]
[1741846074198,0.01855142,83217.0,83215.0,0.252358]
[1741846074199,3.5e-07,83217.0,83215.0,0.252358]
[1741846074473,3.5e-07,83217.0,83216.0,0.012016]
[1741846074668,0.0003392,83218.0,83217.0,0.252351]
[1741846074865,0.0003392,83218.0,83217.0,1.752351]
[1741846075893,0.0003392,83218.0,83217.0,1.76417965]
[1741846076331,0.02934301,83218.0,83217.0,1.91549965]
[1741846076506,0.08736517,83218.0,83217.0,1.903671]
[1741846077336,0.08736517,83218.0,83217.0,1.906671]
[1741846078247,0.08868147,83218.0,83217.0,1.503]
[1741846078449,0.08868147,83218.0,83217.0,0.15412]
[1741846078754,0.08868147,83218.0,83217.0,0.15512]
[1741846080457,0.08868147,83218.0,83217.0,0.167136]
[1741846080665,0.08868147,83218.0,83217.0,0.15512]
[1741846080864,0.08868147,83218.0,83217.0,0.004]
[1741846081622,0.10069747,83218.0,83217.0,0.15452]
[1741846081952,0.22519747,83218.0,83217.0,0.004]
[1741846082747,0.22519747,83218.0,83208.0,0.76312]
[1741846082748,0.012017,83209.0,83208.0,0.76312]
[1741846083578,0.252375,83209.0,83208.0,0.76312]
[1741846084000,0.07003916,83209.0,83208.0,0.76312]
[1741846084862,0.08702597,83209.0,83208.0,0.76312]
[1741846085266,0.09904297,83209.0,83208.0,0.76312]
[1741846085763,0.09904297,83209.0,83208.0,0.76612]
[1741846085939,0.10035927,83209.0,83208.0,0.76612]
[1741846086162,0.10035927,83209.0,83208.0,0.76812]
[1741846087014,0.08834227,83209.0,83208.0,0.76812]
[1741846087216,0.10035927,83209.0,83208.0,0.76812]
[1741846088216,0.08834227,83209.0,83208.0,0.76812]
[1741846088413,0.10035927,83209.0,83208.0,0.76812]
[1741846089435,0.08834227,83209.0,83208.0,0.76812]
[1741846089655,0.08834227,83209.0,83208.0,0.017018]
[1741846089873,0.08834227,83209.0,83208.0,0.0171874]
[1741846090440,0.08702597,83209.0,83208.0,0.0171874]
[1741846090846,0.08702597,83209.0,83208.0,0.04485901]
[1741846091043,0.08702597,83209.0,83208.0,0.04365731]
[1741846091649,0.08702597,83209.0,83208.0,0.04485896]
[1741846091897,0.08702597,83209.0,83208.0,0.18551049]
[1741846092118,9.7e-07,83209.0,83208.0,0.18351046]
[1741846092322,0.0003392,83218.0,83217.0,0.252351]
[1741846092538,0.0003392,83218.0,83217.0,0.38683404]
[1741846093598,0.0003392,83218.0,83217.0,0.46803404]
[1741846093824,0.0003392,83218.0,83217.0,1.96803404]
[1741846094235,0.0003392,83218.0,83217.0,1.88683404]
[1741846095213,0.0003392,83218.0,83217.0,1.89683404]
[1741846095956,2e-07,83218.0,83217.0,2.35563324]
[1741846096133,2e-07,83218.0,83217.0,2.43103324]
[1741846097224,2e-07,83218.0,83217.0,2.42603324]
[1741846097708,0.000339,83232.0,83217.0,2.42603324]
[1741846097709,2e-07,83231.0,83230.0,0.252311]
[1741846098035,0.000339,83232.0,83231.0,0.02655485]
[1741846098036,2e-07,83232.0,83231.0,0.02655485]
[1741846098267,0.0013163,83259.0,83258.0,0.01201]
[1741846098515,0.0013163,83259.0,83258.0,0.40414795]
[1741846098752,0.0013163,83264.0,83263.0,0.252212]
[1741846099246,0.0016551,83267.0,83266.0,0.012009]
[1741846099477,0.0013163,83260.0,83258.0,0.18745407]
[1741846099711,0.0013163,83260.0,83259.0,0.252224]
[1741846101489,0.0013163,83260.0,83259.0,0.253224]
[1741846101693,0.0013163,83260.0,83259.0,0.001]
[1741846101864,0.2535403,83259.0,83258.0,0.15084512]
[1741846102075,0.2535403,83259.0,83258.0,0.00012512]
[1741846103942,0.27130186,83259.0,83258.0,0.00012512]
[1741846104135,0.01907786,83259.0,83258.0,0.00012512]
[1741846104354,0.01907786,83259.0,83258.0,0.00212512]
[1741846104565,0.03108786,83259.0,83258.0,0.00012512]
[1741846104970,0.05328928,83259.0,83258.0,0.00012512]
[1741846105238,0.04662757,83259.0,83258.0,0.00012512]
[1741846105608,0.04662757,83259.0,83258.0,0.00112512]
[1741846106268,0.04662757,83259.0,83258.0,0.00012512]
[1741846108132,0.06437555,83259.0,83258.0,0.00012512]
[1741846109747,0.06437555,83259.0,83258.0,1.2e-07]
[1741846109988,0.19217555,83259.0,83258.0,1.2e-07]
[1741846110667,0.17442757,83259.0,83258.0,1.2e-07]
[1741846111972,0.0013163,83231.0,83227.0,0.012015]
[1741846112191,0.0013163,83231.0,83230.0,0.76320514]
[1741846112397,0.2416113,83231.0,83230.0,0.76320514]
[1741846112649,0.0133303,83231.0,83230.0,0.76320514]
[1741846112894,0.0013163,83231.0,83230.0,0.76320514]
[1741846113112,0.02351772,83231.0,83230.0,0.77521914]
[1741846113340,0.02351772,83231.0,83230.0,0.76320514]
[1741846113541,0.02351772,83231.0,83230.0,0.77721914]
[1741846113770,0.02351772,83231.0,83230.0,0.76520514]
[1741846114276,0.03461757,83231.0,83230.0,0.76720514]
[1741846114500,0.01241615,83231.0,83230.0,0.76720514]
[1741846114729,0.02443015,83231.0,83230.0,0.76720514]
[1741846114947,0.02443015,83231.0,83230.0,0.00412514]
[1741846116798,0.01241615,83231.0,83230.0,0.00412514]
[1741846117022,0.02443015,83231.0,83230.0,0.00412514]
[1741846117496,0.01241615,83231.0,83230.0,0.01613914]
[1741846117903,0.01241615,83231.0,83230.0,0.00412514]
[1741846118130,0.02443015,83231.0,83230.0,0.00412514]
[1741846119544,0.01241615,83231.0,83230.0,0.00412514]
[1741846119723,0.01241615,83231.0,83230.0,0.01613914]
[1741846120129,0.01109985,83231.0,83230.0,0.01734055]
[1741846120341,0.01109985,83231.0,83230.0,0.01613914]
[1741846120741,0.01109985,83231.0,83230.0,0.03188119]
[1741846120942,0.01109985,83231.0,83230.0,0.03067999]
[1741846121122,0.00668832,83231.0,83230.0,0.22712218]
[1741846121326,0.0013163,83251.0,83250.0,0.252252]
[1741846121898,0.0013163,83251.0,83250.0,0.26429064]
[1741846122309,0.0013163,83251.0,83250.0,0.252252]
[1741846123377,0.0013163,83249.0,83248.0,0.240244]
[1741846123579,0.0013163,83249.0,83248.0,0.252256]
[1741846123751,0.2405546,83259.0,83248.0,0.252256]
[1741846123752,0.0013163,83251.0,83250.0,0.012012]
[1741846123962,0.0013163,83251.0,83250.0,0.01321309]
[1741846124388,0.0013163,83251.0,83250.0,0.012012]
[1741846124601,0.0013163,83251.0,83250.0,0.013012]
[1741846124750,0.0013163,83251.0,83250.0,0.01421302]
[1741846124964,0.0013163,83251.0,83250.0,0.013012]
[1741846125592,0.0013163,83251.0,83250.0,0.001]
[1741846125768,0.0013163,83251.0,83250.0,0.013012]
[1741846125978,0.0013163,83251.0,83250.0,0.0131813]
[1741846129385,0.0013163,83251.0,83250.0,0.01438232]
[1741846129839,0.0013163,83251.0,83250.0,1.51438232]
[1741846130070,0.0013163,83251.0,83250.0,1.5131813]
[1741846130530,0.0013163,83251.0,83250.0,1.5121813]
[1741846130747,0.0013163,83251.0,83250.0,1.5141813]
[1741846131208,0.0013163,83251.0,83250.0,1.5021693]
[1741846131435,0.0133273,83251.0,83250.0,0.0021693]
[1741846131735,0.0133273,83251.0,83250.0,0.0041693]
[1741846132166,0.0133273,83251.0,83250.0,0.0021693]
[1741846132605,0.0153273,83251.0,83250.0,0.0021693]
[1741846133095,0.0133273,83251.0,83250.0,0.0021693]
[1741846133513,0.0153273,83251.0,83250.0,0.0001693]
[1741846133969,0.0163273,83251.0,83250.0,0.0001693]
[1741846134170,0.0153273,83251.0,83250.0,0.0001693]
[1741846134601,0.0163273,83251.0,83250.0,0.0001693]
[1741846135045,0.02746279,83251.0,83250.0,0.0001693]
[1741846135918,0.02546279,83251.0,83250.0,0.0001693]
[1741846136345,0.02946279,83251.0,83250.0,0.0001693]
[1741846138226,0.02980139,83251.0,83250.0,0.0001693]
[1741846140466,0.01779039,83251.0,83250.0,0.0001693]
[1741846140882,0.02980139,83251.0,83250.0,0.0001693]
[1741846141098,0.01779039,83251.0,83250.0,0.0001693]
[1741846141310,0.01779039,83251.0,83250.0,0.0121813]
[1741846141520,0.0186659,83251.0,83250.0,0.0001693]
[1741846141735,0.0176659,83251.0,83250.0,0.0001693]
[1741846141946,0.0136659,83251.0,83250.0,0.0001693]
[1741846142155,0.0146659,83251.0,83250.0,0.0001693]
[1741846142369,0.0166659,83251.0,83250.0,0.0001693]
[1741846142785,0.0146659,83251.0,83250.0,0.0001693]
[1741846143236,0.0166659,83251.0,83250.0,0.0001693]
[1741846143433,0.0046549,83251.0,83250.0,0.0001693]
[1741846145357,0.2448919,83251.0,83250.0,0.0001693]
[1741846145578,0.2569029,83251.0,83250.0,0.0001693]
[1741846145817,0.0046549,83251.0,83250.0,0.0001693]
[1741846146678,0.0046549,83251.0,83250.0,0.2404093]
[1741846146879,0.0046549,83251.0,83250.0,0.2524213]
[1741846147902,0.0046549,83251.0,83250.0,0.0001693]
[1741846148030,0.0036549,83251.0,83250.0,0.0001693]
[1741846148237,0.0016549,83251.0,83250.0,0.0001693]
[1741846148710,0.0036549,83251.0,83250.0,0.0001693]
[1741846148938,0.0036549,83251.0,83250.0,0.0121813]
[1741846149155,0.0016549,83251.0,83250.0,0.0121813]
[1741846149387,0.0016549,83251.0,83250.0,0.0001693]
[1741846149617,0.0026549,83251.0,83250.0,0.0001693]
[1741846150968,0.0936659,83251.0,83250.0,0.0001693]
[1741846151184,0.0146659,83251.0,83250.0,0.0001693]
[1741846151837,0.0133496,83251.0,83250.0,0.0001693]
[1741846152116,0.0146659,83251.0,83250.0,0.0001693]
[1741846153271,0.0642659,83251.0,83250.0,0.0001693]
[1741846153721,0.1465659,83251.0,83250.0,0.0001693]
[1741846153929,0.1465659,83251.0,83250.0,3e-07]
[1741846154144,0.1965659,83251.0,83250.0,3e-07]
[1741846154371,0.2536223,83232.0,83231.0,0.0001693]
[1741846155892,0.3041223,83232.0,83231.0,0.0001693]
[1741846156113,0.31823468,83232.0,83231.0,0.0001693]
[1741846158177,0.3061223,83232.0,83231.0,0.0001693]
[1741846158820,0.31812972,83232.0,83231.0,0.0001693]
[1741846159031,0.0383303,83231.0,83230.0,4.4e-07]
[1741846159244,0.1402303,83231.0,83230.0,4.4e-07]
[1741846159449,0.15477115,83231.0,83230.0,4.4e-07]
[1741846160318,0.15977115,83231.0,83230.0,4.4e-07]
[1741846161245,0.16577115,83231.0,83230.0,4.4e-07]
[1741846161657,0.16077115,83231.0,83230.0,4.4e-07]
[1741846161913,0.26063164,83231.0,83230.0,4.4e-07]
[1741846162117,0.26763164,83231.0,83230.0,4.4e-07]
[1741846162753,0.26763164,83231.0,83217.0,0.0001693]
[1741846162754,0.44940515,83218.0,83217.0,7.4e-07]
[1741846162958,0.59756515,83218.0,83217.0,4.231e-05]
[1741846163392,0.66434619,83218.0,83217.0,4.231e-05]
[1741846163613,0.59756515,83218.0,83217.0,4.231e-05]
[1741846164418,0.0133373,83183.0,83182.0,0.75642111]
[1741846164619,0.0133373,83183.0,83177.0,0.012022]
[1741846165293,0.0013163,83183.0,83178.0,1.5]
[1741846165498,0.01202,83190.0,83178.0,1.5]
[1741846165499,0.0013163,83201.0,83195.0,0.252418]
[1741846165690,0.0013163,83196.0,83195.0,0.251418]